fUSD/lending_fUSD_20240511
["ID","MTS","AMOUNT","RATE_DAILY","PERIOD"]
[326806973,1715391039522,-1909.03515831,0.00012799,2]
[326806974,1715391039532,-24263.45163615,0.000128,2]
[326806975,1715391039542,-245000.0,0.000128,2]
[326806976,1715391039552,-1000.0,0.000128,2]
[326806977,1715391039562,-315.30400393,0.000128,2]
[326806978,1715391039572,-1000.0,0.00012839,2]
[326806979,1715391039582,-7454.44,0.00012844,2]
[326806980,1715391039592,-1270.57418416,0.00012849,2]
[326806981,1715391039602,-10875.98954795,0.00012868,2]
[326806982,1715391039612,-7200.1,0.00012869,2]
[326806983,1715391039622,-7500.0,0.00012891,2]
[326806984,1715391039633,-186.15704986,0.00012894,2]
[326806985,1715391039642,-9660.43145065,0.00012894,2]
[326806986,1715391039653,-1000.0,0.000129,2]
[326806987,1715391039663,-10000.0,0.000129,2]
[326806988,1715391039674,-165.70238202,0.000129,2]
[326806989,1715391039684,-3254.68686046,0.000129,2]
[326806990,1715391039694,-2945.96209182,0.000129,2]
[326806991,1715391039705,-2945.96209181,0.000129,2]
[326806992,1715391039714,-2945.96209181,0.000129,2]
[326806993,1715391039724,-2945.96209181,0.000129,2]
[326806994,1715391039734,-224.87688922,0.000129,2]
[326806995,1715391039743,-2945.96209181,0.000129,2]
[326806996,1715391039753,-2945.96209181,0.000129,2]
[326806997,1715391039763,-2945.96209181,0.000129,2]
[326806998,1715391039773,-6408.5580296,0.00012991,2]
[326806999,1715391039782,-5034.67449,0.00012991,2]
[326807000,1715391039792,-3660.7909504,0.00012991,2]
[326807001,1715391039802,-2286.9074108,0.00012991,2]
[326807002,1715391039811,-913.0238712,0.00012991,2]
[326807003,1715391039821,-15247.37666,0.00012991,2]
[326807004,1715391039831,-11981.4121738,0.00012991,2]
[326807005,1715391039841,-8715.4476877,0.00012991,2]
[326807006,1715391039851,-5449.4832015,0.00012991,2]
[326807007,1715391039861,-2183.5187153,0.00012991,2]
[326807008,1715391039871,-557.174667,0.00012991,2]
[326807009,1715391039880,-557.174667,0.00012991,2]
[326807010,1715391039890,-557.174667,0.00012991,2]
[326807011,1715391039900,-557.174667,0.00012991,2]
[326807012,1715391039910,-557.174667,0.00012991,2]
[326807013,1715391039921,-146446.8014061,0.00012991,2]
[326807014,1715391039932,-118854.339699,0.00012991,2]
[326807015,1715391039943,-91261.8779918,0.00012991,2]
[326807016,1715391039954,-63669.4162846,0.00012991,2]
[326807017,1715391039964,-36076.9545775,0.00012991,2]
[326807018,1715391039975,-7782.4415692,0.00012994,2]
[326807019,1715391039985,-18513.3411461,0.00012994,2]
[326807020,1715391039995,-557.174667,0.00012994,2]
[326807021,1715391040005,-168889.86994935,0.00012994,2]
[326807022,1715391040018,-5149.39316395,0.00012994,2]
[326807023,1715391040028,-209.53863198,0.00012998,2]
[326807024,1715391040038,-1063.76820407,0.00012998,2]
[326807026,1715391040050,-833.50084882,0.00012998,2]
[326807029,1715391040061,-155.0,0.00012998,2]
[326807031,1715391040071,-309.59985631,0.00012999,2]
[326807242,1715391042546,-929.72851557,0.00012999,2]
[326807244,1715391042558,-1032.72111341,0.00012999,2]
[326807274,1715391043502,-250.0,0.0001217,2]
[326807277,1715391043512,-2945.96209181,0.000129,2]
[326807280,1715391043522,-481.52537712,0.00012999,2]
[326807282,1715391043532,-2244.06184093,0.00012999,2]
[326807284,1715391043541,-7200.65015161,0.00013,2]
[326807286,1715391043895,-655.88237123,0.00012679,2]
[326807288,1715391043905,-61.06984839,0.00013,2]
[326807290,1715391043915,-792583.04140805,0.00013,2]
[326807296,1715391046595,-590.82,0.00013,2]
[326807320,1715391547694,500.0,0.00011676,2]
[326807324,1715391643891,1352.30549652,0.00011609,2]
[326807325,1715391709940,150.0,0.00011691,2]
[326807326,1715391901701,738.946778,0.00011649,2]
[326807332,1715392046443,250.0,0.00011696,2]
[326807344,1715392232603,-655.88237123,0.00011707,2]
[326807346,1715392232612,-250.0,0.00011707,2]
[326807348,1715392232622,-160.0,0.00011708,2]
[326807350,1715392232636,-21202.61712877,0.00011724,2]
[326807351,1715392232647,-2317.49276815,0.00011724,2]
[326807352,1715392232872,-379.89010308,0.00011724,2]
[326807354,1715392232881,-313.26156205,0.00011735,2]
[326807356,1715392232892,-486.73843795,0.00011735,2]
[326807358,1715392232901,-21.73354919,0.00011764,2]
[326807396,1715392238475,-218.26645081,0.00011764,2]
[326807399,1715392238484,-226.47,0.00011939,2]
[326807402,1715392238494,-226.47,0.00011972,2]
[326807403,1715392238503,-226.47,0.00012004,2]
[326807404,1715392238512,-226.47,0.00012037,2]
[326807405,1715392238522,-226.47,0.0001207,2]
[326807406,1715392238531,-226.47,0.00012103,2]
[326807407,1715392238541,-2030.962924,0.00012111,2]
[326807408,1715392238550,-226.47,0.00012135,2]
[326807409,1715392238559,-226.47,0.00012168,2]
[326807411,1715392238569,-226.47,0.00012201,2]
[326807414,1715392238578,-226.47,0.00012234,2]
[326807415,1715392238587,-226.47,0.00012266,2]
[326807418,1715392238597,-177.05,0.00012283,2]
[326807419,1715392238606,-226.47,0.00012299,2]
[326807421,1715392238615,-3649.46,0.00012318,2]
[326807423,1715392238625,-200.0,0.00012322,2]
[326807425,1715392238639,-226.47,0.00012332,2]
[326807427,1715392238649,-271.07090274,0.0001235,2]
[326807429,1715392238658,-226.47,0.00012365,2]
[326807431,1715392238667,-226.47,0.00012397,2]
[326807433,1715392238679,-226.47,0.0001243,2]
[326807435,1715392238688,-226.47,0.00012463,2]
[326807437,1715392238700,-226.47,0.00012495,2]
[326807440,1715392238714,-155.0,0.000125,2]
[326807441,1715392238724,-226.47,0.00012528,2]
[326807443,1715392238733,-226.47,0.00012561,2]
[326807445,1715392238742,-1005.25937909,0.0001274,2]
[326807447,1715392238751,-7359.87,0.00012774,2]
[326807449,1715392238761,-17465.38678377,0.000128,2]
[326807457,1715392238824,-1034.63710718,0.000128,2]
[326807458,1715392238835,-5767.69866578,0.000128,2]
[326807459,1715392238844,-7235.75,0.00012812,2]
[326807460,1715392238854,-7380.85,0.00012851,2]
[326807461,1715392238863,-322.08600023,0.00012886,2]
[326807462,1715392238872,-359.87573199,0.00012898,2]
[326807463,1715392238882,-1000.0,0.00012899,2]
[326807464,1715392238891,-377.1851,0.000129,2]
[326807465,1715392238900,-393.7958,0.000129,2]
[326807466,1715392238909,-10000.0,0.000129,2]
[326807467,1715392238918,-883.6685,0.000129,2]
[326807468,1715392238927,-31439.08184421,0.000129,2]
[326807469,1715392238939,-2068.59902885,0.000129,2]
[326807470,1715392238952,-986.9196089,0.000129,2]
[326807471,1715392238963,-394.58287922,0.000129,2]
[326807472,1715392238973,-5056.73676619,0.000129,2]
[326807480,1715392241266,-1747.78663876,0.000129,2]
[326807495,1715392243774,-534.51437561,0.000129,2]
[326807496,1715392243785,-1260.72262288,0.000129,2]
[326807497,1715392243796,-37094.23594304,0.000129,2]
[326807498,1715392243805,-265.5899,0.000129,2]
[326807499,1715392243814,-8887.46316958,0.000129,2]
[326807500,1715392243822,-211.04107247,0.000129,2]
[326807501,1715392243831,-7396.73,0.0001291,2]
[326807502,1715392243840,-7255.63,0.00012951,2]
[326807503,1715392243849,-170.86,0.0001297,2]
[326807504,1715392243859,-33047.6925956,0.00012978,2]
[326807505,1715392243868,-278291.55080839,0.0001298,2]
[326807506,1715392243877,-625.93810597,0.00012986,2]
[326807507,1715392243886,-7375.14,0.00012989,2]
[326807508,1715392243895,-2830.1008862,0.00012991,2]
[326807509,1715392243904,-2938.3163944,0.00012991,2]
[326807510,1715392243913,-3046.5319026,0.00012991,2]
[326807511,1715392243922,-3154.7474108,0.00012991,2]
[326807512,1715392243931,-150.89781513,0.00012999,2]
[326807513,1715392243940,-5862.30699132,0.00012999,2]
[326807514,1715392243951,-10427.34,0.00012999,2]
[326807515,1715392243960,-10427.34,0.00012999,2]
[326807516,1715392243969,-10427.34,0.00012999,2]
[326807517,1715392243978,-10427.34,0.00012999,2]
[326807518,1715392243987,-10427.34,0.00012999,2]
[326807519,1715392243996,-10427.34,0.00012999,2]
[326807520,1715392244004,-10427.34,0.00012999,2]
[326807521,1715392244013,-10427.34,0.00012999,2]
[326807522,1715392244023,-10427.34,0.00012999,2]
[326807523,1715392244031,-10427.34,0.00012999,2]
[326807524,1715392244040,-10427.34,0.00012999,2]
[326807525,1715392244049,-10427.34,0.00012999,2]
[326807526,1715392244058,-10427.34,0.00012999,2]
[326807527,1715392244068,-10427.34,0.00012999,2]
[326807528,1715392244077,-10427.34,0.00012999,2]
[326807529,1715392244086,-10427.34,0.00012999,2]
[326807530,1715392244095,-10427.34,0.00012999,2]
[326807531,1715392244104,-10427.34,0.00012999,2]
[326807532,1715392244113,-10427.34,0.00012999,2]
[326807533,1715392244122,-10427.34,0.00012999,2]
[326807534,1715392244132,-10427.34,0.00012999,2]
[326807535,1715392244140,-10427.34,0.00012999,2]
[326807536,1715392244149,-10427.34,0.00012999,2]
[326807537,1715392244158,-10427.40014826,0.00012999,2]
[326807538,1715392244167,-143783.11811268,0.00013,2]
[326807539,1715392244179,-302772.95094611,0.00013,2]
[326807540,1715392244424,-7467.47150629,0.00013,2]
[326807541,1715392246723,-655.88237123,0.00012899,2]
[326807542,1715392246732,-47522.2597073,0.00013,2]
[326807545,1715392250595,359.7,0.00010959,2]
[326807546,1715392257049,3392.54850844,0.00011696,2]
[326807547,1715392260474,299.75,0.00010959,2]
[326807548,1715392270987,249.79,0.00010959,2]
[326807549,1715392272988,156.98975128,0.00012998,120]
[326807550,1715392281471,208.16,0.00010959,2]
[326807551,1715392291979,173.46,0.00010959,2]
[326807552,1715392302708,867.35,0.00010959,2]
[326807553,1715392308018,8984.1754,0.00011607,2]
[326807557,1715392563355,7540.82527131,0.00011607,2]
[326807558,1715392564455,296.35112618,0.00011607,2]
[326807559,1715392565041,55932.69825871,0.00011607,2]
[326807560,1715392585951,176.54,0.00011679,2]
[326807561,1715392590368,250.0,0.00011679,2]
[326807562,1715392733708,1500.0,0.00011166,2]
[326807563,1715392785966,150.0,0.00011155,2]
[326807564,1715392882148,15611.55,0.00011144,2]
[326807565,1715392897835,176.81,0.00011681,2]
[326807566,1715392915043,1102.6,0.00011133,2]
[326807567,1715392955194,200.0,0.00011191,2]
[326807568,1715392961565,640.0,0.0001124,2]
[326807569,1715392989931,-155.0,0.00011724,2]
[326807570,1715392989953,-155.0,0.00011725,2]
[326807571,1715392989977,-360.60821666,0.00011726,2]
[326807572,1715392989999,-204.42365204,0.00011726,2]
[326807573,1715392990020,-655.88237123,0.00011727,2]
[326807574,1715392990041,-428.09763587,0.00011727,2]
[326807575,1715392990063,-4424.19913805,0.00011729,2]
[326807576,1715392990087,-159.86,0.00011753,2]
[326807577,1715392990112,-200.0,0.00011754,2]
[326807578,1715392990134,-250.0,0.00011758,2]
[326807579,1715392990160,-172.36,0.00011775,2]
[326807580,1715392990182,-150.99,0.00011775,2]
[326807581,1715392990203,-151.55,0.00011775,2]
[326807582,1715392990224,-150.0,0.00011803,2]
[326807583,1715392990247,-150.0,0.00011803,2]
[326807584,1715392990270,-159.86,0.00011804,2]
[326807585,1715392990294,-360.0,0.00011834,2]
[326807586,1715392990317,-159.86,0.00011855,2]
[326807587,1715392990339,-159.86,0.00011906,2]
[326807588,1715392990360,-159.86,0.00011957,2]
[326807589,1715392990657,-11455.3925027,0.00012,2]
[326807590,1715392990680,-1000.0,0.00012,2]
[326807591,1715393026889,171.36,0.00011744,2]
[326807592,1715393044638,250.0,0.00011744,2]
[326807593,1715393083122,19790.56483263,0.00011744,2]
[326807594,1715393094096,429.6,0.00011807,2]
[326807595,1715393147770,159.86,0.00011761,2]
[326807596,1715393147896,159.86,0.00011848,2]
[326807597,1715393148096,159.86,0.00011936,2]
[326807598,1715393193655,264.0,0.00011674,2]
[326807603,1715393432617,-1000.0,0.00012022,2]
[326807605,1715393432627,-159.86,0.00012023,2]
[326807607,1715393432637,-159.86,0.00012111,2]
[326807609,1715393432647,-159.86,0.00012198,2]
[326807611,1715393432657,-731.21419766,0.0001224,2]
[326807612,1715393432668,-6778.49006298,0.0001224,2]
[326807613,1715393432678,-589.7853,0.00012241,2]
[326807615,1715393432687,-265.5899,0.00012241,2]
[326807617,1715393432697,-210.4181,0.00012241,2]
[326807619,1715393432707,-1753.1625,0.00012241,2]
[326807621,1715393432717,-1857.141,0.00012263,2]
[326807622,1715393432727,-159.86,0.00012286,2]
[326807623,1715393432736,-450.96701366,0.00012333,2]
[326807624,1715393432746,-290.17928806,0.00012339,2]
[326807625,1715393432755,-155.43971771,0.00012339,2]
[326807626,1715393432764,-188.74499744,0.00012339,2]
[326807627,1715393432774,-242.20259269,0.00012339,2]
[326807628,1715393432783,-472.555781,0.00012339,2]
[326807629,1715393432793,-1867.03106072,0.00012339,2]
[326807630,1715393432802,-448.37499556,0.00012339,2]
[326807631,1715393432811,-1036.39632217,0.0001234,2]
[326807632,1715393432821,-625.93810597,0.0001234,2]
[326807633,1715393432830,-1423.56811445,0.0001234,2]
[326807634,1715393432840,-172078.86915402,0.00012341,2]
[326807635,1715393432850,-159.86,0.00012374,2]
[326807636,1715393432859,-155.0,0.000125,2]
[326807637,1715393432868,-640.0,0.00012645,2]
[326807638,1715393432878,-150.0,0.00012741,2]
[326807639,1715393432887,-150.0,0.00012757,2]
[326807640,1715393432897,-150.0,0.00012762,2]
[326807641,1715393432906,-150.0,0.00012765,2]
[326807642,1715393432916,-150.0,0.00012778,2]
[326807643,1715393432925,-150.0,0.00012788,2]
[326807644,1715393432934,-393.7958,0.000128,2]
[326807645,1715393432943,-12643.48345206,0.000128,2]
[326807646,1715393432953,-150.0,0.00012804,2]
[326807647,1715393432962,-150.0,0.00012824,2]
[326807648,1715393432973,-7303.13,0.00012828,2]
[326807649,1715393432982,-150.0,0.00012838,2]
[326807650,1715393432992,-150.0,0.00012841,2]
[326807651,1715393433002,-150.0,0.00012841,2]
[326807652,1715393433011,-150.0,0.00012858,2]
[326807653,1715393433028,-150.0,0.00012862,2]
[326807654,1715393433037,-7410.97,0.00012869,2]
[326807655,1715393433047,-964.97835705,0.00012869,2]
[326807656,1715393433056,-957.63883027,0.0001287,2]
[326807657,1715393433067,-150.0,0.00012884,2]
[326807658,1715393433076,-159.59,0.0001289,2]
[326807659,1715393433086,-500.0,0.00012896,2]
[326807660,1715393433095,-2002.69135182,0.00012898,2]
[326807661,1715393433104,-322.78554776,0.00012898,2]
[326807662,1715393433114,-883.6685,0.00012898,2]
[326807663,1715393433123,-1642.1579,0.00012898,2]
[326807664,1715393433132,-377.1851,0.000129,2]
[326807665,1715393433141,-10000.0,0.000129,2]
[326807666,1715393433151,-7500.0,0.000129,2]
[326807667,1715393433160,-175.25792101,0.000129,2]
[326807669,1715393433169,-2216.53244,0.000129,2]
[326807671,1715393433178,-500.70947017,0.000129,2]
[326807673,1715393433188,-354.79143725,0.000129,2]
[326807674,1715393433197,-215.61771242,0.000129,2]
[326807675,1715393433206,-215.61771242,0.000129,2]
[326807676,1715393433217,-2935.3544031,0.000129,2]
[326807677,1715393433226,-15400.58639135,0.000129,2]
[326807678,1715393433236,-2101.98538485,0.000129,2]
[326807679,1715393433245,-329.6342481,0.000129,2]
[326807680,1715393433255,-150.0,0.00012904,2]
[326807681,1715393433265,-150.0,0.0001291,2]
[326807682,1715393433274,-173.61,0.00012929,2]
[326807683,1715393433283,-7332.92,0.00012945,2]
[326807684,1715393433292,-150.0,0.0001295,2]
[326807685,1715393433301,-53047.6925956,0.00012962,2]
[326807686,1715393433311,-150.0,0.00012962,2]
[326807687,1715393433321,-150.0,0.00012965,2]
[326807688,1715393433331,-150.0,0.00012969,2]
[326807689,1715393433340,-2216.53244,0.0001297,2]
[326807690,1715393433350,-150.0,0.00012978,2]
[326807691,1715393433360,-150.0,0.00012978,2]
[326807692,1715393433369,-150.0,0.0001298,2]
[326807693,1715393433379,-150.0,0.00012987,2]
[326807694,1715393433388,-150.0,0.00012988,2]
[326807695,1715393433398,-155.25561239,0.0001299,2]
[326807696,1715393433407,-153.4,0.0001299,2]
[326807697,1715393433416,-153.4,0.0001299,2]
[326807698,1715393433426,-392.69915674,0.0001299,2]
[326807699,1715393433435,-392.69915674,0.0001299,2]
[326807700,1715393433446,-153.4,0.0001299,2]
[326807701,1715393433455,-392.69915674,0.0001299,2]
[326807702,1715393433465,-153.4,0.0001299,2]
[326807703,1715393433474,-153.4,0.0001299,2]
[326807704,1715393433483,-159.59,0.0001299,2]
[326807705,1715393433493,-159.59,0.0001299,2]
[326807706,1715393433502,-159.59,0.0001299,2]
[326807707,1715393433511,-159.59,0.0001299,2]
[326807708,1715393433521,-159.59,0.0001299,2]
[326807709,1715393433530,-159.59,0.0001299,2]
[326807710,1715393433540,-159.59,0.0001299,2]
[326807711,1715393433550,-531.8226066,0.00012991,2]
[326807712,1715393433560,-531.8226066,0.00012991,2]
[326807713,1715393433569,-531.8226066,0.00012991,2]
[326807714,1715393433579,-531.8226066,0.00012991,2]
[326807715,1715393433588,-531.8226066,0.00012991,2]
[326807716,1715393433598,-23083.1471105,0.00012991,2]
[326807717,1715393433607,-18466.9054993,0.00012991,2]
[326807718,1715393433617,-13850.663888,0.00012991,2]
[326807719,1715393433627,-9234.4222767,0.00012991,2]
[326807720,1715393433636,-4618.1806654,0.00012991,2]
[326807721,1715393433645,-531.8226066,0.00012994,2]
[326807722,1715393433654,-692.30466753,0.00012994,2]
[326807723,1715393433664,-994.45877411,0.00012996,2]
[326807724,1715393433673,-216.75323215,0.00012996,2]
[326807725,1715393433683,-359.87573199,0.00012996,2]
[326807726,1715393433693,-150.0,0.00012996,2]
[326807727,1715393433703,-155.65663772,0.00012997,2]
[326807728,1715393433712,-266.78735371,0.00012998,2]
[326807729,1715393433728,-161.14675743,0.00012998,2]
[326807730,1715393433738,-162.88318701,0.00012998,2]
[326807731,1715393433748,-166.08040346,0.00012998,2]
[326807732,1715393433757,-322.30604966,0.00012998,2]
[326807733,1715393433768,-178.22550261,0.00012998,2]
[326807734,1715393433779,-626.19090459,0.00012998,2]
[326807735,1715393433789,-155.14498609,0.00012998,2]
[326807736,1715393433799,-325.00809379,0.00012998,2]
[326807737,1715393433808,-166.48344612,0.00012998,2]
[326807738,1715393433818,-329.51857143,0.00012998,2]
[326807739,1715393433828,-237.29906159,0.00012998,2]
[326807740,1715393433838,-156.13871585,0.00012998,2]
[326807741,1715393433848,-3094.09030108,0.00012998,2]
[326807742,1715393433858,-306.11919685,0.00012998,2]
[326807743,1715393433869,-313.19764072,0.00012998,2]
[326807744,1715393433879,-175.56120707,0.00012998,2]
[326807745,1715393433889,-155.14661657,0.00012998,2]
[326807746,1715393433898,-200.12330582,0.00012998,2]
[326807747,1715393433908,-155.28378818,0.00012998,2]
[326807748,1715393433918,-158.92675557,0.00012998,2]
[326807749,1715393433927,-208.95182428,0.00012998,2]
[326807750,1715393433936,-4936.4108919,0.00012998,2]
[326807751,1715393433946,-1494.81947137,0.00012998,2]
[326807752,1715393433956,-652.57464098,0.00012998,2]
[326807753,1715393433967,-3064.76786537,0.00012999,2]
[326807754,1715393433977,-489.23279697,0.00012999,2]
[326807755,1715393433987,-200.16529574,0.00012999,2]
[326807756,1715393433996,-157.75225036,0.00012999,2]
[326807757,1715393434006,-409.77388628,0.00012999,2]
[326807758,1715393434016,-388.33616125,0.00012999,2]
[326807759,1715393434030,-155.40501053,0.00012999,2]
[326807760,1715393434039,-1247.58318257,0.00012999,2]
[326807761,1715393434048,-155.13255733,0.00012999,2]
[326807762,1715393434058,-227.42728531,0.00012999,2]
[326807763,1715393434069,-2332.41110373,0.00012999,2]
[326807764,1715393434078,-150.01,0.00012999,2]
[326807765,1715393434088,-4991.51206804,0.00012999,2]
[326807766,1715393434097,-339675.34771633,0.00013,2]
[326807767,1715393434140,-1277.46,0.00013,2]
[326807768,1715393434152,-4934.82617957,0.00013,2]
[326807769,1715393435032,488.0,0.00011896,2]
[326807772,1715393438709,-208.5906131,0.00012999,2]
[326807774,1715393438718,-3327.67471203,0.00012999,2]
[326807776,1715393438731,-61623.72631708,0.00013,2]
[326807798,1715393438981,-252.92312204,0.00013,2]
[326807800,1715393439363,-712.08271485,0.00013,2]
[326807815,1715393442158,-292.76482184,0.000129,2]
[326807816,1715393442395,-433.74328576,0.000129,2]
[326807817,1715393442406,-593.24523342,0.000129,2]
[326807824,1715393443884,-805.291941,0.000129,2]
[326807825,1715393443895,-237.34001798,0.000129,2]
[326807826,1715393443904,-369.48247772,0.000129,2]
[326807827,1715393443914,-49.13134194,0.00012999,2]
[326807828,1715393444142,-2169.31846608,0.00012999,2]
[326807829,1715393444151,-3513.82013073,0.00013,2]
[326807830,1715393444163,-942.66174752,0.00013,2]
[326807831,1715393444174,-582645.75131898,0.00013,2]
[326807832,1715393444185,-1240.86150004,0.00013,2]
[326807833,1715393444197,-755549.8753134,0.00013,2]
[326807835,1715393447124,-481.86782994,0.00012999,2]
[326807838,1715393620314,250.0,0.00011893,2]
[326807839,1715393656969,186.0,0.00011891,2]
[326807840,1715393723020,3737.0,0.00025,120]
[326807841,1715393944444,609.6,0.00011887,2]
[326807842,1715394097802,250.0,0.00011875,2]
[326807892,1715394230354,345.06,0.00011875,2]
[326807893,1715394397930,512.32,0.00011868,2]
[326807894,1715394438282,-314.45847106,0.00012146,2]
[326807895,1715394445126,-685.54152894,0.00012146,2]
[326807896,1715394445148,-940.60992866,0.00012147,2]
[326807897,1715394445170,-231.85369892,0.000125,4]
[326807898,1715394445192,-155.0,0.00012528,2]
[326807899,1715394445213,-7097.24606257,0.00012528,2]
[326807900,1715394445240,-174.9,0.00012529,2]
[326807901,1715394445261,-200.1124092,0.000126,2]
[326807902,1715394445283,-350.138049,0.00012667,2]
[326807903,1715394445306,-150.0,0.00012731,2]
[326807904,1715394445330,-150.0,0.00012735,2]
[326807905,1715394445354,-150.0,0.00012738,2]
[326807906,1715394445382,-150.0,0.00012738,2]
[326807907,1715394445404,-150.0,0.00012738,2]
[326807908,1715394445426,-2466.02980867,0.00012738,2]
[326807909,1715394445452,-1004.70197057,0.00012739,2]
[326807910,1715394445473,-1012.01882969,0.00012739,2]
[326807911,1715394445498,-150.0,0.00012741,2]
[326807912,1715394445523,-150.0,0.00012742,2]
[326807913,1715394445546,-150.0,0.00012745,2]
[326807914,1715394445569,-150.0,0.00012746,2]
[326807915,1715394445592,-150.0,0.00012756,2]
[326807916,1715394445615,-150.0,0.00012756,2]
[326807917,1715394445641,-150.0,0.00012757,2]
[326807918,1715394445666,-150.0,0.00012757,2]
[326807919,1715394445693,-150.0,0.00012759,2]
[326807920,1715394445716,-150.0,0.00012759,2]
[326807921,1715394445739,-150.0,0.0001276,2]
[326807922,1715394445761,-150.0,0.00012766,2]
[326807923,1715394445785,-150.0,0.00012768,2]
[326807924,1715394445808,-150.0,0.00012769,2]
[326807925,1715394445832,-150.0,0.00012771,2]
[326807926,1715394445856,-150.0,0.00012775,2]
[326807927,1715394445883,-112.11863024,0.00012779,2]
[326807928,1715394534037,299.96,0.00011916,2]
[326807983,1715394632271,-37.88136976,0.00012779,2]
[326807985,1715394632280,-150.0,0.00012782,2]
[326807986,1715394632289,-150.0,0.00012782,2]
[326807988,1715394632299,-150.0,0.0001279,2]
[326807990,1715394632308,-150.0,0.00012791,2]
[326807992,1715394632318,-150.0,0.00012794,2]
[326807994,1715394632327,-150.0,0.00012795,2]
[326807996,1715394632337,-150.0,0.00012799,2]
[326807998,1715394632347,-12643.48345206,0.000128,2]
[326808000,1715394632356,-184.97938315,0.000128,2]
[326808002,1715394632365,-150.0,0.000128,2]
[326808004,1715394632374,-150.0,0.00012803,2]
[326808006,1715394632383,-150.0,0.00012804,2]
[326808008,1715394632392,-150.0,0.00012805,2]
[326808010,1715394632401,-150.0,0.0001281,2]
[326808012,1715394632416,-150.0,0.00012813,2]
[326808014,1715394632424,-150.0,0.00012818,2]
[326808015,1715394632433,-150.0,0.00012827,2]
[326808017,1715394632442,-150.0,0.00012829,2]
[326808018,1715394632452,-150.0,0.00012829,2]
[326808019,1715394632461,-150.0,0.00012834,2]
[326808020,1715394632470,-150.0,0.00012837,2]
[326808022,1715394632479,-150.0,0.00012841,2]
[326808023,1715394632488,-150.0,0.00012843,2]
[326808026,1715394632499,-150.0,0.00012846,2]
[326808028,1715394632510,-150.0,0.00012847,2]
[326808031,1715394632519,-150.0,0.00012854,2]
[326808033,1715394632528,-150.0,0.00012862,2]
[326808037,1715394632538,-150.0,0.00012869,2]
[326808040,1715394632547,-150.0,0.00012869,2]
[326808042,1715394632556,-150.0,0.00012873,2]
[326808045,1715394632565,-150.0,0.00012875,2]
[326808048,1715394632574,-150.0,0.00012875,2]
[326808051,1715394632583,-150.0,0.00012876,2]
[326808054,1715394632593,-150.0,0.00012878,2]
[326808057,1715394632602,-150.0,0.00012878,2]
[326808060,1715394632611,-150.0,0.0001288,2]
[326808063,1715394632620,-150.0,0.0001289,2]
[326808066,1715394632629,-2500.0,0.00012891,2]
[326808069,1715394632639,-150.0,0.00012891,2]
[326808072,1715394632648,-150.0,0.00012892,2]
[326808075,1715394632658,-1000.0,0.00012895,2]
[326808078,1715394632667,-500.0,0.00012895,2]
[326808081,1715394632676,-500.0,0.00012895,2]
[326808084,1715394632685,-500.0,0.00012896,2]
[326808087,1715394632694,-500.0,0.00012896,2]
[326808089,1715394632704,-500.0,0.00012896,2]
[326808092,1715394632713,-500.0,0.00012896,2]
[326808095,1715394632722,-500.0,0.00012896,2]
[326808098,1715394632732,-150.0,0.00012896,2]
[326808102,1715394632742,-655.82645492,0.00012898,2]
[326808104,1715394632751,-303.33926113,0.00012898,2]
[326808108,1715394632762,-37187.38429106,0.00012898,2]
[326808111,1715394632771,-856.7678,0.00012899,2]
[326808113,1715394632780,-15535.6061,0.00012899,2]
[326808116,1715394632789,-10237.65277162,0.000129,2]
[326808118,1715394632798,-26167.3569,0.000129,2]